Cogmind - Beta 12 @@@ ROGUE MODE // 2024.02.18 @ 19:23:20 Player: ToasterKoishi Result: Destroyed by as-80379 with Assembled Rifle Performance ------------- Evolutions (0) 0 Regions Visited (2) 400 Robots Destroyed (22) 110 Value Destroyed (428) 428 Prototype IDs (0) 0 Alien Tech Used (0) 0 Bonus (0) 0 TOTAL SCORE: 938 Bonus ------- None Cogmind --------- Core Integrity 0/250 Matter 229/300 Energy 100/100 System Corruption 10% Temperature Cool (0) Movement Core (750) Ox14 Location -10/Mines Parts ------- > --- POWER (1) -------- (None) > --- PROPULSION (2) --- (None) > --- UTILITY (2) ------ High-capacity Storage Unit > --- WEAPON (2) ------- Heavy Hammer > --- INVENTORY (20) --- Light Ion Engine Improved Ion Engine Improved Ion Engine Improved Treads Improved Treads Improved Treads Compact Wheel High-capacity Storage Unit High-capacity Matter Pod (186) Weapon Shielding Light Armor Plating Light Armor Plating Light Armor Plating Light Assault Rifle Heavy Hammer Heavy Hammer Heavy Hammer Peak State ------------ > --- POWER ------------ Light Nuclear Core > --- PROPULSION ------- Improved Treads Compact Wheel > --- UTILITY ---------- High-capacity Storage Unit Light Armor Plating > --- WEAPON ----------- Heavy Hammer Heavy Hammer > --- INVENTORY -------- Light Ion Engine Improved Ion Engine Improved Ion Engine Aluminum Leg Aluminum Leg Aluminum Leg Compact Wheel High-capacity Storage Unit High-capacity Matter Pod Weapon Shielding Light Armor Plating Light Armor Plating Light Armor Plating Light Assault Rifle Grenade Launcher Heavy Hammer Heavy Hammer [Rating: 14] Favorites ----------- Power Ion Engine Engine Ion Engine Power Core Light Nuclear Core Propulsion Compact Wheel Treads Light Treads Leg Aluminum Leg Wheel Compact Wheel Utility High-capacity Storage Unit Storage High-capacity Storage Unit Protection Weapon Shielding Weapon Assault Rifle Energy Gun Medium Laser Ballistic Gun Assault Rifle Launcher Grenade Launcher Impact Weapon Heavy Hammer Build | -11 -10 -10 ------- Run | Jun Mat Min Slots Evolved . | . . . Power . | . . . Propulsion . | . . . Utility . | . . . Weapon . | . . . Parts Attached 18 | 6 11 1 Power 3 | 1 2 . Engine 2 | 1 1 . Core 1 | . 1 . Reactor . | . . . Propulsion 4 | 2 2 . Treads 2 | 1 1 . Leg 1 | . 1 . Wheel 1 | 1 . . Hover . | . . . Flight . | . . . Utility 5 | 1 4 . Device . | . . . Storage 3 | 1 2 . Processor . | . . . Hackware . | . . . Protection 2 | . 2 . Artifact . | . . . Weapon 6 | 2 3 1 Energy Gun 1 | 1 . . Energy Cannon . | . . . Ballistic Gun 2 | 1 1 . Ballistic Cannon . | . . . Launcher 1 | . . 1 Special Weapon . | . . . Impact Weapon 2 | . 2 . Slashing Weapon . | . . . Piercing Weapon . | . . . Special Melee Weapon . | . . . Unidentified Prototypes . | . . . Parts Lost 6 | . 1 5 Power 1 | . . 1 Propulsion 3 | . 1 2 Utility 1 | . . 1 Weapon 1 | . . 1 Highest Loss Streak 5 | . 1 5 To Critical Strikes . | . . . Average Slot Usage (%) 96 | . 96 95 Engine 7 | . 7 . Core 6 | . 6 14 Treads 13 | . 12 14 Wheel 13 | . 14 11 Storage 17 | . 17 14 Protection 8 | . 7 14 Energy Gun 4 | . 4 . Ballistic Gun 18 | . 19 . Impact Weapon 3 | . 3 14 Naked Turns . | . . . Heaviest Build 69 | 14 69 54 Greatest Support 16 | 16 16 16 Greatest Overweight (x) 4 | 1 4 3 Average Overweight (x) 2 | . 2 3 Largest Inventory Capacity 20 | 8 20 20 Average Capacity 17 | 7 18 20 Most Carried 17 | 4 17 17 Average Carried 8 | 2 9 17 Final Capacity 20 | 8 20 20 Final Carried 17 | 4 17 17 Class Distribution -------------------- 100% | Mutant Dominant Class ---------------- Mutant | -10/Materials Mutant | -10/Mines Resources | -11 -10 -10 ----------- Run | Jun Mat Min Matter Collected 843 | 275 553 15 Remotely . | . . . Salvage Created 607 | 120 441 46 Parts 39 | 6 29 4 Haulers Intercepted . | . . . Recyclers Shooed . | . . . Parts Field Recycled . | . . . Retrieved Matter . | . . . Parts Self-Destructed . | . . . Prevented . | . . . Kills | -11 -10 -10 ------- Run | Jun Mat Min Combat Hostiles Destroyed 27 | . 13 14 Guns 13 | . 13 . AOE 14 | . . 14 Classes Destroyed 8 | 2 5 1 Worker 1 | . 1 . Tunneler 2 | 2 . . Recycler 1 | 1 . . Operator 1 | . 1 . Watcher 1 | . 1 . Swarmer 8 | . 5 3 Grunt 8 | . 8 . Assembled 11 | . . 11 Best Kill Streak 11 | 3 4 11 Combat Bots Only 11 | . 3 11 Max Kills in Single Turn 4 | 1 1 4 Gunslinging . | . . . Exploded 4 | . . 4 Melee . | . . . Uniques/NPCs Destroyed . | . . . Combat | -11 -10 -10 -------- Run | Jun Mat Min Damage Taken 1095 | . 566 529 Core 252 | . 131 121 Absorbed by Shields . | . . . Redirected to Shielding 16 | . 16 . Core Remaining (%) 100 | 100 . . Volleys Fired 59 | 5 46 8 Largest 2 | 2 2 1 Hottest 70 | 70 70 30 Shots Fired 110 | 10 92 8 Gun 102 | 10 92 . Cannon . | . . . Launcher 8 | . . 8 Special . | . . . Kinetic 71 | 5 66 . Thermal 31 | 5 26 . Explosive 8 | . . 8 Electromagnetic . | . . . Robot Hit Streak 8 | 3 8 4 Robot Miss Streak 4 | 2 4 1 Penetration Max . | . . . Secondary Targets . | . . . Shots Hit Robots 64 | 5 54 5 Core Hits 64 | 4 22 38 Critical Kills . | . . . Critical Parts Destroyed . | . . . Critical Strikes 3 | . 3 . Burn 3 | . 3 . Melee Attacks 7 | . 4 3 Impact 7 | . 4 3 Slashing . | . . . Piercing . | . . . Sneak Attacks . | . . . Combat Hostiles . | . . . Follow-up Attacks . | . . . Damage Inflicted 1908 | 60 724 1124 Guns 739 | 60 679 . Cannons . | . . . Explosions 1072 | . . 1072 Melee 97 | . 45 52 Ramming . | . . . Kinetic 521 | 35 486 . Thermal 218 | 25 193 . Explosive 1072 | . . 1072 Electromagnetic . | . . . Impact 97 | . 45 52 Slashing . | . . . Piercing . | . . . Highest Corruption 10 | . . 10 Average Corruption 5 | . . 5 Corruption Purged . | . . . Corruption Blocked . | . . . Overload Shots . | . . . Overflow Damage 37 | . 15 22 Projectiles . | . . . Explosions 22 | . . 22 Melee 15 | . 15 . Knockbacks . | . . . Impact . | . . . Kinetic . | . . . Secondary . | . . . Self-Inflicted Damage . | . . . Shots . | . . . Rammed . | . . . Targets Rammed . | . . . Kicked . | . . . Crushed . | . . . Highest Temperature 90 | 18 90 40 Average Temperature 23 | 9 24 22 Received Heat Transfer 261 | . 201 60 Siege Activations . | . . . Robots Corrupted . | . . . Combat Hostiles . | . . . Parts Fried 2 | . 2 . Impact Corruptions 1 | . 1 . Robots Melted . | . . . Combat Hostiles . | . . . Parts Melted 2 | . 2 . Heat Transferred 851 | 74 777 . Parts Sabotaged . | . . . Parts Stolen . | . . . Parts Stripped . | . . . Power Chain Reactions . | . . . Missiles Intercepted . | . . . Alert | -11 -10 -10 ------- Run | Jun Mat Min Peak Influence 275 | 15 275 161 Initial 43 | . 9 43 Average 131 | 4 140 135 Maximum Alert Level 1 | . 1 . Low Security (%) 74 | 100 71 100 Level 1 25 | . 28 . Level 2 . | . . . Level 3 . | . . . Level 4 . | . . . Level 5 . | . . . High Security . | . . . Max Security . | . . . Squads Dispatched 5 | . 5 . Investigation 3 | . 3 . Extermination . | . . . Reinforcement 2 | . 2 . Assault . | . . . Garrison . | . . . Intercept . | . . . Searches Triggered . | . . . Construction Impeded . | . . . Haulers Reinforced . | . . . Active Scanning Responses . | . . . Cargo Convoy Interrupts . | . . . Stealth | -11 -10 -10 --------- Run | Jun Mat Min Distress Signals 2 | . 2 . Communications Jammed . | . . . Distress Signals . | . . . Times Spotted 52 | . 29 23 Peak Tracking Total 16 | . 6 16 Tactical Retreats 4 | . 4 . Traps | -11 -10 -10 ------- Run | Jun Mat Min Traps Triggered 1 | . 1 . Indirectly . | . . . Trap Hack Attempts . | . . . Triggered . | . . . Disarmed . | . . . Reprogrammed . | . . . Reused . | . . . Traps Extracted . | . . . Installed . | . . . Triggered . | . . . Machines | -11 -10 -10 ---------- Run | Jun Mat Min Machines Disabled 1 | . . 1 Max in Single Turn 1 | . . 1 Machines Repaired . | . . . Machines Sabotaged . | . . . Overloaded Fab Kills . | . . . Hacking | -11 -10 -10 --------- Run | Jun Mat Min Machines Accessed 9 | . 9 . Terminals 7 | . 7 . Fabricators . | . . . Repair Stations . | . . . Recycling Units 2 | . 2 . Scanalyzers . | . . . Garrison Access . | . . . Total Hacks 16 | . 16 . Successful 4 | . 4 . Failed 11 | . 11 . Catastrophic 1 | . 1 . Database Lockouts 1 | . 1 . Manual 17 | . 17 . Terminals 14 | . 14 . Fabricators . | . . . Repair Stations . | . . . Recycling Units 2 | . 2 . Scanalyzers . | . . . Garrison Access . | . . . Terminal Hacks 2 | . 2 . Robot Analysis 2 | . 2 . Fabricator Hacks . | . . . Repair Station Hacks . | . . . Recycling Unit Hacks . | . . . Scanalyzer . | . . . Garrison Access Hacks . | . . . Unauthorized Hacks 2 | . 2 . Terminals . | . . . Fabricators . | . . . Repair Stations . | . . . Recycling Units 2 | . 2 . Tunnel 2 | . 2 . Scanalyzers . | . . . Garrison Access . | . . . Data Cores Recovered . | . . . Used . | . . . Hacking Detections 6 | . 6 . Full Trace Events . | . . . Feedback Events . | . . . Feedback Blocked . | . . . Robot Schematics Acquired . | . . . Robots Built . | . . . Authchips . | . . . Time . | . . . Total Robot Build Rating . | . . . Part Schematics Acquired . | . . . Parts Built . | . . . Authchips . | . . . Time . | . . . Total Part Build Rating . | . . . Parts Repaired . | . . . Time . | . . . Parts Recycled . | . . . Recycled Matter . | . . . Retrieved Matter . | . . . Retrieved Components . | . . . Parts Scanalyzed . | . . . Part Schematics Acquired . | . . . Parts Damaged . | . . . Bothacking | -11 -10 -10 ------------ Run | Jun Mat Min Used RIF Installer . | . . . Robots Hacked . | . . . Non-combat . | . . . Combat . | . . . Robot Hacks Applied . | . . . Relay Couplers Released . | . . . Fabnet Peak Effective % . | . . . Robots Rewired . | . . . Allies Hacked . | . . . Hacks Repelled . | . . . Allies | -11 -10 -10 -------- Run | Jun Mat Min Total Allies . | . . . Largest Group . | . . . Highest-Rated Group . | . . . Highest-Rated Ally . | . . . Total Orders . | . . . Ally Attacks . | . . . Total Damage . | . . . Kills . | . . . Allies Corrupted . | . . . Allies Melted . | . . . Intel | -11 -10 -10 ------- Run | Jun Mat Min Robot Analysis Total 2 | . 2 . Derelict Logs Recovered . | . . . Drone Launches . | . . . Drone Recoveries . | . . . Exploration | -11 -10 -10 ------------- Run | Jun Mat Min Turns Passed 1377 | 88 1225 64 Spaces Moved 792 | 62 704 26 Core 5 | 5 . . Treads . | . . . Legs . | . . . Wheels 787 | 57 704 26 Hover . | . . . Flight . | . . . Fastest Speed 50 | 50 100 145 Average Speed 134 | 97 137 145 Slowest Speed 160 | 100 160 145 Overloaded Moves . | . . . Propulsion Burnouts . | . . . Robots Hopped . | . . . Cave-ins Triggered . | . . . Exploration Rate (%) 37 | 3 99 9 Regions Visited 2 Branch Regions 1 Pre-discovered Areas 2 | . 2 . Known Exits Taken . | . . . Unknown Exits Taken 2 | 1 1 . Scrap Searched . | . . . Spaces Dug 2 | . 2 . Terrain Destroyed 50 | . 2 48 Melee 2 | . 2 . Projectile . | . . . AOE 48 | . . 48 Terrain Rammed . | . . . Walls Destroyed . | . . . Machines Disabled . | . . . Actions | -11 -10 -10 --------- Run | Jun Mat Min Total 980 | 76 866 38 Wait 67 | . 67 . Move 790 | 61 703 26 Hop . | . . . Pick Up 23 | 4 19 . Fast Attach 14 | 6 8 . Attach . | . . . Detach 1 | . 1 . Swap 4 | . 3 1 Drop 15 | . 15 . Fire 59 | 5 46 8 Melee 7 | . 4 3 Ram . | . . . Kick . | . . . Crush . | . . . Escape Stasis . | . . . Rewire . | . . . Trap . | . . . Miscellaneous . | . . . Route ------- -11/Junkyard -10/Materials (discovered 4 exits: [*Mat x3] / [*Min]) -10/Mines History --------- Turn | Location | Event 46 | -11/Junkyard | Discovered new exit (range 12) 89 | -11/Junkyard | Entered Materials 289 | -10/Materials | Discovered new exit (range 14) 305 | -10/Materials | Build established: Mutant 572 | -10/Materials | Central database locked down 817 | -10/Materials | Discovered new exit (range 4) 1055 | -10/Materials | Core integrity fell below 50% 1130 | -10/Materials | Discovered new exit (range 16) 1298 | -10/Materials | Discovered new exit (range 12) 1314 | -10/Materials | Entered Mines 1348 | -10/Mines | Assembled infested the area 1372 | -10/Mines | Core integrity fell below 20% 1376 | -10/Mines | System corruption reached 10% 1378 | -10/Mines | Destroyed by as-80379 with Assembled Rifle Last Messages --------------- 01362_ as-80247 destroyed. 01362_ as-24948 destroyed. 01363_ Com. Wheel destroyed. 01363_ System corrupted by crushing effect (+4). 01364_ Destroyed Asb. Hover Unit. 01364_ as-81439 destroyed. 01366_ as-39394 destroyed. 01366_ as-35823 destroyed. 01366_ as-47386 destroyed. 01366_ as-88524 destroyed. 01368_ Destroyed Asb. Hover Unit. 01368_ as-98110 destroyed. 01368_ Grenade Launcher destroyed. 01372_ as-28966 destroyed. 01372_ Lgt. Nuclear Core destroyed. 01372_ System corrupted by crushing effect (+1). 01374_ Imp. Treads destroyed. 01375_ Lgt. Armor Plating destroyed. 01375_ System corrupted by crushing effect (+5). 01375_ Knocked back. Map ----- +----------------------------------------------------+ | ?????????????????????????????????????????????????? | | ?????????????????????????????????????????????????? | | ?????????????????????????????????????????????????? | | ?????????????????????????????????????????????????? | | ?????????????????????????????????????????????????? | | ?????????????????????????????????????????????????? | | ?????????????????????????????????????????????????? | | ?????????????????????????????????????????????????? | | ?????????????????????????????????????????????????? | | ?????????????????????????????????????????????????? | | ?????????????????????????????????????????????????? | | ?????????????????????????????????????????????????? | | ?????????????????????????????????????????????????? | | ?????????????????????????????????????????????????? | | ????????????# ???????????????????????????????????? | | ????????????? ?##???????????????????????????????? | | ????????????# # ##?????????????????????????????? | | ????????????# ##???????????????????????????? | | ???????????# ##?????????????????????????? | | ???????????# ?????????????????????????? | | ??????????? aa ##???????????????????????? | | ?????????? a ##?????########?????????? | | ?????????? # % ?###### #?????????? | | ????????? ?# [ ##?????????? | | ????????????# a ### = #?????????? | | ????????????????# aa@ * #?????????? | | ????????????????# # """ #?????????? | | ????????????????## ####### """ "" ##?????????? | | ?????????????????####??????# """ """ #??????????? | | ???????????????????????????# #??????????? | | ???????????????????????????############??????????? | | ?????????????????????????????????????????????????? | | ?????????????????????????????????????????????????? | | | | | | | | | | | | | | | | | | | | | | | | | | | | | | | | | | | +----------------------------------------------------+ Best States ------------- Heat Dissipation 25 Energy Generation 14 Energy Capacity 250 Matter Stores 300 Matter Capacity 300 Sight Range 16 Terrain Scan Density 10 Armor Coverage 150 Weapon Shielding 33 Evasion (%) 40 Recoil Reduction 1 Item Schematics ----------------- None Robot Schematics ------------------ None Fabricated ------------ Nothing Alien Tech Used ----------------- None Achievements -------------- None Challenges ------------ None Game ------ Seed ReactiveInsulatedGreatsword Manual? 0 Play Time 00:12:35 Cumulative 28.3 hours Start 2024.02.18 @ 19:11:56 End 2024.02.18 @ 19:23:20 Sessions 1 Manual Loads 0 Difficulty Rogue Special Mode None Game No. 23 Rogue 23 Adventurer 0 Explorer 0 Win Type - Total 1 Types 1/0/0/0/0/0/0/0/0 Lore% 26 Gallery% 23 Achievement% 25 Wizard Run 0 Options --------- ASCII 0 Keyboard 0 Movement Mouse Keybinds 0 Fullscreen 2 Font 18/SmallcapsGlow Map View 112x50 Tactical HUD 1 Map Filters NONE Filters NONE Steam 1 RUN: bb189c03-5cef-4205-9d36-efebbd8d3129